bitfinex-derivatives/quotes_ETHF0:USTF0_20250906
["timestamp","ask_amount","ask_price","bid_price","bid_amount"]
[1757149416364,0.2955,4306.6,4306.5,5.371]
[1757149416567,0.7144,4306.6,4306.3,0.3009]
[1757149416862,0.7144,4306.1,4306.0,0.3009]
[1757149417068,0.7144,4306.1,4305.8,0.3009]
[1757149417270,0.7144,4306.0,4305.9,0.5119]
[1757149418268,0.7144,4306.0,4305.9,0.7253]
[1757149420362,0.90645678,4306.0,4305.9,0.7253]
[1757149422572,0.19205678,4306.0,4305.9,0.7253]
[1757149423468,0.19205678,4306.0,4305.9,1.57112165]
[1757149423675,3.2078,4306.4,4305.9,1.57112165]
[1757149423873,0.19213708,4306.3,4306.2,0.4244]
[1757149424170,0.19213708,4306.3,4306.2,0.7253]
[1757149424572,0.90653708,4306.3,4306.2,0.7253]
[1757149425967,1.75239033,4306.3,4306.2,0.3009]
[1757149426172,1.75239033,4306.3,4306.2,0.5119]
[1757149426672,0.4189,4305.8,4305.7,0.5119]
[1757149426875,0.90656868,4305.8,4305.7,0.7253]
[1757149428274,0.61106868,4305.8,4305.7,0.7253]
[1757149428777,0.39666868,4305.8,4305.7,0.7253]
[1757149430969,0.90586868,4305.8,4305.7,0.7253]
[1757149432767,0.90586409,4305.8,4305.7,0.7253]
[1757149434272,0.7206,4305.7,4305.6,0.7091]
[1757149434473,0.91276409,4305.7,4305.6,0.7091]
[1757149436066,0.61526409,4305.7,4305.6,0.7091]
[1757149436575,0.91276409,4305.7,4305.6,0.7091]
[1757149436774,0.91282809,4305.7,4305.6,0.7091]
[1757149437379,0.40362809,4305.7,4305.6,0.7091]
[1757149437573,0.91282809,4305.7,4305.6,0.7091]
[1757149440482,0.19222809,4305.7,4305.6,0.7091]
[1757149443081,0.2114,4305.7,4305.6,0.7091]
[1757149443682,0.40389345,4305.7,4305.6,0.7091]
[1757149443879,0.91309345,4305.7,4305.6,0.7091]
[1757149444178,0.40389345,4305.7,4305.6,0.7091]
[1757149444383,0.91315479,4305.7,4305.6,0.7091]
[1757149444584,1.75897644,4305.7,4305.6,0.7091]
[1757149445289,0.91315479,4305.7,4305.6,0.5085]
[1757149445986,1.47945037,4305.7,4305.6,0.2995]
[1757149446986,1.28689558,4305.7,4305.6,0.5085]
[1757149447176,1.28689558,4305.7,4305.1,0.2995]
[1757149447373,0.56629558,4305.6,4305.1,0.7091]
[1757149447582,0.56629558,4305.5,4305.2,0.2995]
[1757149447784,0.2114,4305.5,4305.4,0.7091]
[1757149448586,0.77908563,4305.5,4305.4,0.7091]
[1757149448787,0.56768563,4305.5,4305.4,0.7091]
[1757149450281,3.4192,4305.8,4305.7,0.4096]
[1757149450484,3.98679693,4305.8,4305.7,0.7091]
[1757149451891,4.49599693,4305.8,4305.7,0.7091]
[1757149452387,4.19849693,4305.8,4305.7,0.7091]
[1757149453087,4.49599693,4305.8,4305.7,0.7091]
[1757149453387,4.19849693,4305.8,4305.7,0.7091]
[1757149453686,3.98679693,4305.8,4305.7,0.7091]
[1757149456585,4.49599693,4305.8,4305.7,0.2995]
[1757149456887,5.34181858,4305.8,4305.4,0.2995]
[1757149457087,0.7206,4305.4,4305.3,0.6436]
[1757149457287,0.4231,4305.4,4305.3,0.6436]
[1757149457591,0.4231,4305.4,4305.3,0.9431]
[1757149460191,0.2044,4305.6,4305.5,0.5483]
[1757149460583,0.77307887,4305.6,4305.5,0.87]
[1757149461586,1.07667887,4305.6,4305.5,0.87]
[1757149462989,3.2078,4306.3,4305.5,0.87]
[1757149463193,0.7022,4306.1,4305.5,0.1247]
[1757149463391,1.54802165,4305.6,4305.5,0.234]
[1757149463699,2.1167996,4305.6,4305.5,0.5557]
[1757149464286,2.11679079,4305.6,4305.5,0.5557]
[1757149465793,2.11679079,4305.6,4305.5,0.234]
[1757149470806,0.3986,4305.3,4305.2,0.3217]
[1757149471002,0.7022,4305.3,4305.2,0.3217]
[1757149471205,0.3986,4304.9,4304.8,0.4474]
[1757149471399,0.7022,4304.9,4304.8,0.6576]
[1757149471602,0.3986,4304.9,4304.8,0.6576]
[1757149471801,0.3986,4304.9,4304.8,0.9793]
[1757149471995,0.2044,4304.9,4304.8,1.82512165]
[1757149473899,0.2044,4304.9,4304.8,0.9793]
[1757149476105,0.7022,4304.9,4304.8,0.9793]
[1757149476306,0.7022,4304.9,4304.8,0.7453]
[1757149476507,0.7022,4304.9,4304.8,0.9793]
[1757149477204,0.7022,4304.9,4304.8,0.5351]
[1757149477399,1.54802165,4304.9,4304.8,0.7691]
[1757149477595,1.54802165,4304.9,4304.8,0.234]
[1757149478108,1.54802165,4304.9,4304.8,0.5557]
[1757149478607,0.7022,4304.9,4304.8,0.7691]
[1757149478811,0.7022,4304.9,4304.8,0.9793]
[1757149479307,0.3986,4304.9,4304.8,0.9793]
[1757149480200,0.7022,4304.9,4304.8,0.9793]
[1757149481210,0.3986,4304.9,4304.8,0.9793]
[1757149481809,0.3986,4304.9,4304.8,0.7453]
[1757149482009,0.7022,4304.9,4304.8,0.7453]
[1757149482309,0.3986,4304.9,4304.8,0.7453]
[1757149482501,0.7022,4304.9,4304.8,0.7453]
[1757149489208,0.7022,4304.9,4304.8,0.734]
[1757149489909,0.7022,4304.9,4304.8,0.5351]
[1757149490213,0.2044,4304.9,4304.8,0.734]
[1757149490407,3.2078,4305.3,4304.8,0.4123]
[1757149490610,0.7701475,4305.2,4305.1,0.7164]
[1757149490913,1.2703475,4305.2,4305.1,0.7164]
[1757149493012,3.2078,4305.3,4305.1,0.7164]
[1757149493213,3.2078,4305.3,4305.2,0.3118]
[1757149493516,3.7202,4305.3,4305.2,0.7164]
[1757149494116,3.4132,4305.3,4305.2,0.7164]
[1757149495819,3.2078,4305.3,4305.2,0.7164]
[1757149497221,3.7202,4305.3,4305.2,0.7164]
[1757149497411,0.7056,4305.3,4305.2,0.7164]
[1757149498919,0.3986,4305.3,4305.2,0.7164]
[1757149499216,3.3158,4306.0,4305.2,0.7164]
[1757149499422,0.307,4305.8,4305.3,0.3118]
[1757149499717,1.271547,4305.7,4305.6,0.5175]
[1757149500229,1.271547,4305.7,4305.6,0.7164]
[1757149500722,1.271547,4305.7,4305.6,0.3118]
[1757149501112,0.7056,4305.2,4305.1,0.4397]
[1757149501618,0.7056,4305.2,4305.1,0.9504]
[1757149503316,0.307,4305.1,4304.6,0.3118]
[1757149503521,3.3153,4305.5,4304.7,0.234]
[1757149503826,3.4418,4306.0,4305.3,0.4046]
[1757149504022,0.2054,4305.5,4305.4,0.7164]
[1757149504624,0.2054,4305.5,4305.0,0.1209]
[1757149504625,4.28022014,4305.5,4305.0,0.1209]
[1757149504825,0.7056,4305.1,4305.0,1.0713]
[1757149508224,0.7056,4305.1,4305.0,0.9504]
[1757149509323,0.7056,4305.1,4305.0,1.0713]
[1757149509519,0.2054,4305.1,4305.0,1.0713]
[1757149509826,0.2054,4305.6,4305.5,0.4327]
[1757149510129,3.97893256,4305.6,4305.5,0.8373]
[1757149511432,3.4132,4305.6,4305.5,0.8373]
[1757149514431,3.2078,4305.6,4305.5,0.8373]
[1757149514633,3.5148,4306.3,4306.0,0.1209]
[1757149514930,0.7056,4306.1,4306.0,0.8373]
[1757149515237,0.2054,4306.1,4306.0,0.8373]
[1757149515736,0.7056,4306.1,4306.0,0.8373]
[1757149517035,0.2054,4306.1,4306.0,0.8373]
[1757149517235,0.7056,4306.1,4306.0,0.8373]
[1757149517436,0.7056,4306.1,4306.0,0.7164]
[1757149517632,0.7056,4306.1,4306.0,0.5175]
[1757149517828,0.7056,4306.1,4306.0,0.3118]
[1757149519038,0.7056,4306.1,4305.5,0.1209]
[1757149519243,0.7056,4306.1,4305.6,0.3086]
[1757149519438,0.1075,4306.0,4305.6,0.3086]
[1757149519644,0.6958,4305.7,4305.6,0.7032]
[1757149520444,0.6958,4305.7,4305.6,0.5056]
[1757149520645,0.6958,4305.7,4305.6,0.3086]
[1757149521147,0.6958,4305.7,4305.6,0.7032]
[1757149521549,0.2008,4305.7,4305.6,0.7032]
[1757149521746,0.4966,4305.7,4305.6,0.7032]
[1757149522650,0.6958,4305.7,4305.6,0.7032]
[1757149524348,0.6958,4306.1,4306.0,0.8247]
[1757149525154,0.6958,4306.1,4306.0,0.7032]
[1757149526653,0.6958,4306.1,4306.0,0.8247]
[1757149533958,0.6958,4306.1,4306.0,0.7032]
[1757149537454,3.2078,4306.3,4306.1,0.3086]
[1757149537655,3.2078,4306.3,4306.2,0.3086]
[1757149537851,3.77321849,4306.3,4306.2,0.9372]
[1757149538360,4.46901849,4306.3,4306.2,0.9372]
[1757149539456,3.97401849,4306.3,4306.2,0.9372]
[1757149539758,3.77321849,4306.3,4306.2,0.9372]
[1757149540059,3.2078,4306.3,4306.2,0.9372]
[1757149540958,3.2078,4306.3,4306.2,1.16942]
[1757149541164,3.2078,4306.8,4306.7,0.7032]
[1757149541352,3.7735986,4306.8,4306.7,0.7032]
[1757149541655,3.4086,4306.8,4306.7,0.7032]
[1757149545557,3.9036,4306.8,4306.7,0.7032]
[1757149550362,3.9036,4306.8,4306.7,0.5056]
[1757149554665,3.9036,4306.8,4306.7,0.714]
[1757149556856,3.9017,4306.8,4306.7,0.714]
[1757149559362,0.6939,4306.8,4306.7,0.714]
[1757149559566,0.4,4306.8,4306.7,0.714]
[1757149559962,0.2008,4306.8,4306.7,0.714]
[1757149560165,0.4947,4306.8,4306.7,0.714]
[1757149560365,0.6903,4306.8,4306.7,0.714]
[1757149564068,0.3964,4306.8,4306.7,0.714]
[1757149564259,0.2039,4307.1,4307.0,0.5495]
[1757149564461,0.76873332,4307.1,4307.0,0.8629]
[1757149564871,1.25823332,4307.1,4307.0,0.8629]
[1757149565464,1.25823332,4307.1,4307.0,0.7362]
[1757149570577,0.1161,4307.0,4306.7,0.234]
[1757149570772,0.6934,4306.8,4306.7,0.234]
[1757149571074,1.25823332,4306.8,4306.7,0.234]
[1757149571672,0.2939,4306.0,4305.8,0.3134]
[1757149571873,0.6934,4305.8,4305.7,6.1328]
[1757149572067,0.6934,4305.8,4305.7,6.97816105]
[1757149572278,0.6934,4305.8,4305.7,7.18656105]
[1757149573779,0.2939,4306.2,4305.7,7.18656105]
[1757149573979,0.6934,4306.2,4306.1,0.2144]
[1757149574170,0.6934,4306.2,4306.1,0.5278]
[1757149574574,0.6934,4306.2,4306.1,0.3134]
[1757149574774,0.6934,4306.2,4305.7,6.45036105]
[1757149574973,0.6934,4305.8,4305.7,7.18656105]
[1757149575776,0.6934,4305.8,4305.7,6.3412]
[1757149576681,0.3995,4305.8,4305.7,6.3412]
[1757149577169,0.3995,4305.8,4305.7,0.9702]
[1757149577576,0.6934,4305.8,4305.7,0.9702]
[1757149577879,0.3995,4305.8,4305.7,0.9702]
[1757149578681,3.5264,4306.3,4305.7,0.6568]
[1757149578879,0.2033,4305.9,4305.8,0.3049]
[1757149579081,0.2033,4305.9,4305.8,0.7063]
[1757149580777,0.7197,4305.9,4305.8,0.7063]
[1757149584090,0.4011,4305.9,4305.8,0.7063]
[1757149584688,3.5264,4306.3,4305.8,0.4014]
[1757149584882,3.5264,4306.3,4305.7,1.07936105]
[1757149584883,3.9275,4306.3,4306.2,0.4014]
[1757149585090,3.9275,4306.3,4306.2,0.7063]
[1757149585787,3.6089,4306.3,4306.2,0.7063]
[1757149586290,3.9275,4306.8,4306.7,0.4014]
[1757149586589,3.9275,4306.8,4306.7,0.7063]
[1757149592502,3.9275,4306.8,4306.7,0.5032]
[1757149592697,3.9275,4306.8,4306.4,0.234]
[1757149592889,3.9275,4306.8,4306.5,0.3049]
[1757149593095,3.9275,4306.8,4306.4,0.234]
[1757149593294,3.9275,4306.8,4306.5,0.3049]
[1757149593596,3.9275,4306.8,4306.4,0.234]
[1757149594004,3.9275,4306.8,4306.5,0.3049]
[1757149594205,3.9275,4306.8,4306.4,0.234]
[1757149594406,3.9275,4306.8,4306.5,0.3049]
[1757149594903,3.9275,4306.8,4306.4,0.234]
[1757149595498,3.9275,4306.8,4306.5,0.3049]
[1757149595700,3.9275,4306.8,4306.4,0.234]
[1757149595902,3.9275,4306.8,4306.5,0.3049]
[1757149596102,3.9275,4306.8,4306.7,0.5032]
[1757149596307,4.49331178,4306.8,4306.7,0.5032]
[1757149596604,4.49331178,4306.8,4306.7,0.7063]
[1757149598205,4.49331178,4306.8,4306.7,0.5032]
[1757149598406,4.49331178,4306.8,4306.5,0.3049]
[1757149598606,3.9275,4306.8,4306.4,0.234]
[1757149598910,3.9275,4306.8,4306.5,0.3049]
[1757149599109,3.9275,4306.8,4306.7,0.1983]
[1757149599407,4.49343775,4306.8,4306.7,0.5032]
[1757149604009,0.3186,4306.4,4306.3,5.6759]
[1757149604201,0.3186,4306.4,4306.3,6.3113]
[1757149604202,0.4011,4306.4,4306.3,6.3113]
[1757149604398,0.2033,4306.4,4306.3,6.3113]
[1757149608816,0.3186,4306.7,4306.3,6.0064]
[1757149609022,0.1935,4306.6,4306.5,0.8364]
[1757149611817,3.2078,4306.8,4306.7,0.4055]
[1757149612017,3.4013,4306.8,4306.7,0.9441]
[1757149612518,0.1935,4306.8,4306.7,0.9441]
[1757149614319,0.5039,4306.8,4306.7,0.9441]
[1757149614514,0.6987,4306.8,4306.7,0.9441]
[1757149614821,1.26526557,4306.8,4306.7,0.9441]
[1757149615621,1.26526557,4306.8,4306.7,0.234]
[1757149616426,4.47306557,4306.8,4306.7,0.234]
[1757149617113,0.6987,4306.4,4306.3,5.371]
[1757149617424,1.26571164,4306.4,4306.3,5.371]
[1757149621620,0.3883,4305.9,4305.8,0.4341]
[1757149621821,0.6987,4305.9,4305.8,0.7387]
[1757149623731,0.6987,4305.9,4305.8,0.9431]
[1757149627636,0.3883,4305.9,4305.8,0.9431]
[1757149628125,3.2078,4306.3,4306.0,0.1263]
[1757149628332,3.2078,4306.3,4306.2,0.4055]
[1757149628526,3.2078,4306.3,4306.2,0.7101]
[1757149628728,3.7117,4306.3,4306.2,0.7101]
[1757149628928,3.9065,4306.3,4306.2,0.3046]
[1757149629426,3.9065,4306.3,4306.2,0.5057]
[1757149631227,3.9065,4306.3,4306.2,0.7101]
[1757149632133,3.5961,4306.3,4306.2,0.7101]
[1757149633029,3.9065,4306.3,4306.2,0.7101]
[1757149633330,3.5961,4306.3,4306.2,0.7101]
[1757149634633,3.2078,4306.3,4306.2,0.7101]
[1757149635029,3.9065,4306.3,4306.2,0.7101]
[1757149641131,3.9065,4306.3,4306.2,0.5057]
[1757149641334,3.9065,4306.3,4305.9,0.3064]
[1757149641537,3.9065,4306.3,4305.8,0.233]
[1757149641835,0.4044,4305.8,4305.0,0.1267]
[1757149642138,0.7085,4305.4,4305.3,0.502]
[1757149643842,0.7085,4305.4,4305.3,0.6967]
[1757149645737,0.7085,4305.4,4305.2,1.233]
[1757149646037,0.7085,4305.3,4305.2,1.735]
[1757149647142,0.7085,4305.3,4305.2,1.502]
[1757149649332,0.7085,4305.3,4305.2,1.6967]
[1757149653347,0.2061,4305.3,4305.2,1.6967]
[1757149660348,0.3041,4305.5,4305.2,1.6967]
[1757149660544,0.5102,4305.5,4305.4,0.3903]
[1757149660744,0.2061,4305.5,4305.4,0.6967]
[1757149661443,0.7085,4305.5,4305.4,0.502]
[1757149662236,0.7085,4305.5,4305.4,0.6967]
[1757149665546,0.4044,4305.5,4305.4,0.6967]
[1757149667053,0.2061,4305.5,4305.4,0.6967]
[1757149667450,0.2061,4305.5,4305.4,1.54260874]
[1757149669160,0.77220882,4305.5,4305.4,1.54260874]
[1757149672161,0.56610882,4305.5,4305.4,1.54260874]
[1757149672356,0.56610882,4305.7,4305.4,1.23620874]
[1757149672557,0.56610882,4305.7,4305.5,0.1178]
[1757149672760,0.56610882,4305.7,4305.6,0.4195]
[1757149673057,0.56610882,4305.7,4305.6,0.7336]
[1757149673454,0.76660882,4305.7,4305.6,0.7336]
[1757149673860,1.29090882,4305.7,4305.6,0.7336]
[1757149681063,1.29090882,4305.7,4305.6,0.5276]
[1757149685861,1.29090882,4305.7,4305.6,0.3141]
[1757149686167,1.29090882,4305.7,4305.6,0.5276]
[1757149689365,1.29090882,4305.7,4305.6,0.7336]
[1757149691569,1.29090882,4305.7,4305.6,0.5276]
[1757149696276,1.29090882,4305.7,4305.6,0.7336]
[1757149697871,0.56610882,4305.7,4305.6,4.96584999]
[1757149698168,3.2078,4306.3,4305.6,4.88474999]
[1757149698367,3.4083,4306.3,4306.2,0.7336]
[1757149698566,0.76744457,4306.3,4306.2,0.7336]
[1757149699271,0.2005,4306.3,4306.2,0.7336]
[1757149700569,0.5189,4306.3,4306.2,0.7336]
[1757149703478,0.2005,4306.3,4306.2,0.7336]
[1757149703774,0.5189,4306.3,4306.2,0.7336]
[1757149704676,0.2005,4306.3,4306.2,0.7336]
[1757149716586,1.80952874,4306.3,4306.2,0.5276]
[1757149716892,0.7428,4305.8,4305.7,0.5127]
[1757149717093,5.36281736,4305.8,4305.7,0.3145]
[1757149718391,4.51690862,4305.8,4305.7,0.5127]
[1757149718593,4.51690862,4305.8,4305.7,0.7168]
[1757149724187,4.51690862,4305.8,4305.0,1.1267]
[1757149724392,0.2119,4305.2,4305.1,0.7168]
[1757149726289,3.2078,4305.8,4305.1,0.7168]
[1757149726492,0.56590007,4305.7,4305.6,0.7168]
[1757149726689,0.77780007,4305.7,4305.6,0.7168]
[1757149726894,1.30870007,4305.7,4305.6,0.7168]
[1757149727992,1.30870007,4305.7,4305.0,1.1267]
[1757149728299,0.2119,4305.2,4305.1,0.7168]
[1757149728494,0.7428,4305.2,4305.1,0.7168]
[1757149729695,0.4244,4305.2,4305.1,0.7168]
[1757149729896,0.5082,4305.2,4305.1,0.7168]
[1757149730097,0.2119,4305.2,4305.1,0.7168]
[1757149732602,0.5082,4305.2,4305.1,0.7168]
[1757149732801,0.7222,4305.2,4305.1,0.7168]
[1757149733005,1.2890178,4305.2,4305.1,0.7168]
[1757149733501,0.7222,4305.2,4305.1,0.7168]
[1757149739410,1.2889029,4305.2,4305.1,0.7168]
[1757149739606,0.7222,4305.2,4305.1,0.7168]
[1757149741309,0.99273438,4305.2,4305.1,0.7168]
[1757149742012,1.28903438,4305.2,4305.1,0.7168]
[1757149745414,0.99273438,4305.2,4305.1,0.7168]
[1757149746917,1.28903438,4305.2,4305.1,0.7168]
[1757149752024,4.49683438,4305.2,4305.1,0.7168]
[1757149755822,4.20053438,4305.2,4305.1,0.7168]
[1757149756126,3.98653438,4305.2,4305.1,0.7168]
[1757149758924,4.29073438,4305.2,4305.1,0.7168]
[1757149760029,4.49003438,4305.2,4305.1,0.7168]
[1757149762933,4.18583438,4305.2,4305.1,0.7168]
[1757149763123,4.49003438,4305.2,4305.1,0.7168]
[1757149763324,4.49003438,4305.2,4305.1,0.5127]
[1757149769331,4.49003438,4305.2,4305.1,0.3145]
[1757149771539,0.698,4305.1,4305.0,1.3184]
[1757149771729,0.698,4305.1,4305.0,0.5611]
[1757149771730,1.2666841,4305.1,4305.0,0.5611]
[1757149771930,5.2666841,4305.1,4304.4,0.3184]
[1757149772130,3.2078,4304.5,4304.4,0.3184]
[1757149772331,4.0094841,4304.5,4304.4,0.3184]
[1757149772933,4.0094841,4304.5,4304.1,0.3184]
[1757149773138,4.0094841,4304.5,4303.7,3.2078]
[1757149773139,0.5686841,4304.4,4304.3,1.3184]
[1757149774238,3.4408,4304.5,4304.4,0.3184]
[1757149774440,4.00888292,4304.5,4304.4,0.3184]
[1757149775937,3.77588292,4304.5,4304.4,1.72724839]
[1757149776135,1.00174839,4305.9,4304.7,0.7255]
[1757149776136,0.233,4304.8,4304.7,0.7255]
[1757149778643,3.2078,4305.0,4304.7,0.4071]
[1757149778838,3.2078,4305.0,4304.8,0.7255]
[1757149779144,0.233,4304.9,4304.8,0.7255]
[1757149779631,3.2078,4305.0,4304.9,0.3184]
[1757149779837,4.00879963,4305.0,4304.9,0.7255]
[1757149781043,3.77579963,4305.0,4304.9,0.7255]
[1757149781249,4.00879963,4305.0,4304.9,0.7255]
[1757149784339,3.77579963,4305.0,4304.9,0.7255]
[1757149784643,4.00879963,4305.0,4304.9,0.7255]
[1757149785047,3.77579963,4305.0,4304.9,0.7255]
[1757149785249,4.00879963,4305.0,4304.9,0.7255]
[1757149786136,2.07755345,4307.3,4304.9,0.7255]
[1757149786137,3.2078,4305.5,4304.9,0.7255]
[1757149786356,0.80087949,4305.4,4305.3,0.7255]
[1757149790553,0.56787949,4305.4,4305.3,0.7255]
[1757149790746,0.80087949,4305.4,4305.3,0.7255]
[1757149791053,0.56787949,4305.4,4305.3,0.7255]
[1757149791549,3.4408,4305.5,4305.4,0.308]
[1757149791851,4.00899486,4305.5,4305.4,0.7284]
[1757149795249,4.00899486,4305.5,4305.1,0.308]
[1757149795455,3.4408,4305.5,4305.1,0.308]
[1757149795854,3.4408,4305.5,4305.0,0.1287]
[1757149796052,3.4408,4305.5,4305.1,0.2082]
[1757149796253,3.4408,4305.5,4305.2,0.308]
[1757149796456,3.2078,4305.5,4305.3,0.2082]
[1757149796754,3.2078,4305.5,4305.4,0.308]
[1757149796955,3.77598925,4305.5,4305.4,0.308]
[1757149797151,4.00898925,4305.5,4305.4,0.308]
[1757149800958,4.00898925,4305.5,4305.4,0.5162]
[1757149806866,3.77598925,4305.5,4305.4,0.5162]
[1757149814970,4.85425658,4305.5,4304.6,0.308]
[1757149815273,0.84600733,4304.9,4304.6,0.308]
[1757149815479,0.80118925,4304.8,4304.0,0.3552]
[1757149815683,0.56818925,4304.7,4304.6,0.308]
[1757149818783,0.56818925,4304.7,4304.6,0.5162]
[1757149822189,0.233,4304.8,4304.6,0.5162]
[1757149822491,0.233,4304.8,4304.7,0.2912]
[1757149822884,0.8009797,4304.8,4304.7,0.2912]
[1757149823084,38.6014432,4304.8,4303.5,1.0]
[1757149823281,4.05380733,4303.6,4303.5,1.0]
[1757149823478,4.85678703,4303.6,4303.5,1.0]
[1757149823691,5.08915704,4303.6,4303.5,1.0]
[1757149824092,9.08915704,4303.6,4303.5,1.0]
[1757149824289,9.08915704,4303.6,4303.0,0.2912]
[1757149824593,4.05380733,4303.1,4303.0,0.2912]
[1757149824790,4.85678703,4303.1,4303.0,0.2912]
[1757149825294,4.28880733,4303.1,4303.0,0.2912]
[1757149826189,4.05380733,4303.1,4303.0,0.2912]
[1757149826394,4.28880733,4303.1,4303.0,0.2912]
[1757149831493,4.28880733,4303.1,4303.0,0.4182]
[1757149833988,3.2078,4303.1,4303.0,0.4182]
[1757149834194,4.28880733,4303.1,4303.0,0.6146]
[1757149835494,4.05380733,4303.1,4303.0,0.6146]
[1757149835691,4.28880733,4303.1,4303.0,0.6146]
[1757149835995,4.05380733,4303.1,4303.0,0.6146]
[1757149836199,4.05380733,4303.1,4303.0,0.4182]
[1757149836395,4.28880733,4303.1,4303.0,0.4182]
[1757149837593,3.4428,4303.1,4303.0,0.4182]
[1757149837798,4.28880733,4303.1,4303.0,0.4182]
[1757149842102,4.28880733,4303.1,4303.0,0.2912]
[1757149848205,4.85891237,4303.1,4302.5,0.127]
[1757149848405,0.6861785,4303.0,4302.5,0.4182]
[1757149848605,0.8050785,4302.9,4302.5,0.4182]
[1757149849502,1.80856313,4302.9,4302.2,0.2959]
[1757149849702,4.21128463,4302.3,4302.2,0.2959]
[1757149849898,3.4428,4302.3,4302.2,0.5043]
[1757149850102,3.4428,4302.3,4302.2,0.2959]
[1757149851307,4.01358709,4302.3,4302.2,0.2959]
[1757149852509,4.01358709,4302.3,4302.2,0.5043]
[1757149858208,3.77858709,4302.3,4302.2,0.5043]
[1757149858408,4.01358709,4302.3,4302.2,0.5043]
[1757149858810,4.01358709,4302.3,4302.2,0.7026]
[1757149858811,3.77858709,4302.3,4302.2,0.7026]
[1757149859011,4.01358709,4302.3,4302.2,0.7026]
[1757149859212,3.77858709,4302.3,4302.2,0.7026]
[1757149859412,4.01358709,4302.3,4302.2,0.7026]
[1757149861114,3.77858709,4302.3,4302.2,0.7026]
[1757149863121,3.89478709,4302.3,4302.2,0.7026]
[1757149865320,3.89478709,4302.3,4302.2,0.5043]
[1757149865718,3.89478709,4302.3,4302.2,0.2959]
[1757149866421,3.89478709,4302.3,4302.2,0.5043]
[1757149866621,3.89478709,4302.3,4302.2,0.2959]
[1757149867215,4.12978709,4302.3,4302.2,0.5043]
[1757149873535,3.89478709,4302.3,4302.2,0.7026]
[1757149873736,4.12978709,4302.3,4302.2,0.7026]
[1757149874336,4.12978709,4302.3,4302.2,0.2959]
[1757149874542,4.12978709,4302.3,4302.0,0.4229]
[1757149874842,0.57078709,4302.2,4302.1,0.2959]
[1757149876140,0.57078709,4302.2,4301.8,0.2959]
[1757149876336,1.00348463,4302.0,4301.5,0.3354]
[1757149876537,0.235,4302.1,4299.8,2.9049943]
[1757149876538,4.21128463,4301.6,4301.2,0.2959]
[1757149876734,4.21128463,4301.6,4301.1,0.2959]
[1757149876735,0.80710395,4301.5,4301.1,0.2959]
[1757149876936,0.57210395,4301.4,4301.1,0.2959]
[1757149877132,0.235,4301.3,4301.1,0.2959]
[1757149877534,3.2078,4301.6,4301.1,0.5043]
[1757149877742,0.80694323,4301.5,4301.2,0.2084]
[1757149877941,0.68814323,4301.4,4301.3,0.2959]
[1757149878337,0.68814323,4301.4,4301.0,0.127]
[1757149878537,4.01474323,4301.3,4301.1,0.2959]
[1757149878848,0.57194323,4301.2,4301.1,0.2959]
[1757149880545,0.57194323,4301.2,4301.0,0.4257]
[1757149880745,0.235,4301.1,4301.0,0.4257]
[1757149881251,0.235,4301.1,4301.0,0.2987]
[1757149881940,0.235,4301.1,4301.0,0.4262]
[1757149882335,0.235,4301.1,4300.5,0.1211]
[1757149882536,3.78003216,4301.0,4300.9,0.1984]
[1757149882747,4.01503216,4301.0,4300.9,0.1984]
[1757149883044,4.01503216,4301.0,4300.9,0.4971]
[1757149883245,3.78003216,4301.0,4300.9,0.4971]
[1757149883446,4.01503216,4301.0,4300.9,0.4971]
[1757149883648,4.01503216,4301.0,4300.9,0.7005]
[1757149884238,3.2078,4301.0,4300.9,0.7005]
[1757149884443,3.4428,4301.0,4300.9,0.7005]
[1757149885554,3.2078,4301.0,4300.9,0.7005]
[1757149887452,0.235,4301.3,4301.1,0.2987]
[1757149887751,0.235,4301.3,4301.2,0.7005]
[1757149888144,0.1162,4301.4,4301.2,0.7005]
[1757149888345,0.1162,4301.4,4301.3,0.2987]
[1757149888546,0.3512,4301.4,4301.3,0.7005]
[1757149889652,0.1162,4301.4,4301.3,0.7005]
[1757149892254,0.3512,4301.4,4301.3,0.7005]
[1757149894855,0.1162,4301.4,4301.3,0.7005]
[1757149897951,0.1162,4301.4,4301.3,4.7005]
[1757149898352,3.2078,4301.5,4301.3,4.7005]
[1757149898353,3.2078,4302.0,4301.5,0.1275]
[1757149898554,3.2078,4302.0,4301.9,0.7005]
[1757149899852,3.3941,4302.0,4301.9,0.7005]
[1757149900351,3.5804,4302.0,4301.9,0.7005]
[1757149906462,3.3941,4302.0,4301.9,0.7005]
[1757149908659,3.2078,4302.0,4301.9,0.7005]
[1757149912365,3.58,4302.0,4301.9,0.7005]
[1757149916770,3.6963,4302.0,4301.9,0.2987]
[1757149921772,3.58,4302.0,4301.9,0.4936]
[1757149922481,3.58,4302.0,4301.9,1.55348573]
[1757149922777,3.3939,4302.0,4301.9,1.55348573]
[1757149923284,3.58,4302.0,4301.9,0.7062]
[1757149924081,4.15421292,4302.0,4301.9,0.7062]
[1757149924782,4.27051292,4302.0,4301.9,0.7062]
[1757149925179,4.15421292,4302.0,4301.9,0.7062]
[1757149927082,4.27051292,4302.0,4301.6,0.312]
[1757149927284,4.27051292,4302.0,4301.3,5.371]
[1757149927285,0.1163,4301.5,4301.3,5.371]
[1757149927479,4.27075061,4301.4,4301.3,5.371]
[1757149927679,4.27075061,4301.4,4301.3,5.683]
[1757149929786,4.27075061,4301.4,4301.3,0.312]
[1757149930287,4.50575061,4301.4,4301.3,0.312]
[1757149930786,4.50575061,4301.4,4301.1,0.312]
[1757149931086,0.4885,4301.2,4301.1,0.312]
[1757149932089,0.7235,4301.2,4301.1,0.312]
[1757149935498,0.7235,4301.2,4301.1,0.5069]